Cogmind - Beta 15 @@@ ROGUE MODE // 2025.07.18 @ 16:04:24 Player: beans Result: Destroyed self with Mini Grenade Launcher Performance ------------- Evolutions (1) 500 Regions Visited (3) 600 Robots Destroyed (29) 145 Value Destroyed (521) 521 Prototype IDs (0) 0 Alien Tech Used (0) 0 Bonus (0) 0 TOTAL SCORE: 1766 Bonus ------- None Cogmind --------- Core Integrity 0/400 Matter 386/500 Energy 100/100 System Corruption 0% Temperature Cool (0) Movement Core (150) Ox2 Location -9/Materials Parts ------- > --- POWER (1) -------- (None) > --- PROPULSION (2) --- (None) > --- UTILITY (4) ------ High-capacity Matter Pod > --- WEAPON (2) ------- Mini Grenade Launcher Makeshift Sword > --- INVENTORY (5) ---- Small Laser Light Assault Rifle Autogun Peak State ------------ > --- POWER ------------ Ion Engine > --- PROPULSION ------- Light Treads Light Treads > --- UTILITY ---------- (None) > --- WEAPON ----------- Beamcaster Makeshift Sword > --- INVENTORY -------- High-capacity Matter Pod Small Laser [Rating: 12] Favorites ----------- Power Ion Engine Engine Ion Engine Propulsion Light Treads Treads Light Treads Utility High-capacity Matter Pod Storage High-capacity Matter Pod Weapon Beamcaster Energy Gun Beamcaster Energy Cannon Beam Cannon Launcher Mini Grenade Launcher Slashing Weapon Makeshift Sword Build | -11 -10 -10 -9 ------- Run | Yrd Mat Min Mat Slots Evolved 2 | . . . 2 Power . | . . . . Propulsion . | . . . . Utility 2 | . . . 2 Weapon . | . . . . Parts Attached 10 | 5 . 2 3 Power 1 | 1 . . . Engine 1 | 1 . . . Core . | . . . . Reactor . | . . . . Propulsion 2 | 2 . . . Treads 2 | 2 . . . Leg . | . . . . Wheel . | . . . . Hover . | . . . . Flight . | . . . . Utility 1 | . . . 1 Device . | . . . . Storage 1 | . . . 1 Processor . | . . . . Hackware . | . . . . Protection . | . . . . Artifact . | . . . . Weapon 6 | 2 . 2 2 Energy Gun 3 | 2 . 1 . Energy Cannon 1 | . . . 1 Ballistic Gun . | . . . . Ballistic Cannon . | . . . . Launcher 1 | . . . 1 Special Weapon . | . . . . Impact Weapon . | . . . . Slashing Weapon 1 | . . 1 . Piercing Weapon . | . . . . Special Melee Weapon . | . . . . Unidentified Prototypes . | . . . . Parts Lost 6 | . . 3 3 Power 1 | . . . 1 Propulsion 2 | . . 2 . Utility . | . . . . Weapon 3 | . . 1 2 Highest Loss Streak 3 | . . 1 3 To Critical Strikes . | . . . . Average Backups 2 | . . 2 3 Power . | . . . . Propulsion . | . . . . Utility . | . . 1 . Weapon 1 | . . 1 3 Tool/Special . | . . . . Unused Backups 2 | . . . 2 Power . | . . . . Propulsion . | . . . . Utility . | . . . . Weapon 2 | . . . 2 Tool/Special . | . . . . Average Slot Usage (%) 56 | . 71 58 33 Engine 11 | . 14 14 2 Treads 16 | . 28 16 . Storage 1 | . . . 9 Energy Gun 17 | . 28 17 2 Launcher 1 | . . . 7 Slashing Weapon 7 | . . 9 11 Peak Build Rating 12 | 5 5 12 11 Average Rating 8 | 3 5 10 7 On Entrance 5 | . 5 5 10 Naked Turns . | . . . . Heaviest Build 16 | 8 8 12 16 Greatest Support 40 | 40 40 40 3 Greatest Overweight (x) 5 | . . 3 5 Average Overweight (x) 1 | . . 1 2 Largest Inventory Capacity 5 | 5 5 5 5 Average Capacity 5 | 5 5 5 5 Most Carried 5 | 3 1 4 5 Average Carried 2 | . . 2 3 Final Capacity 5 | 5 5 5 5 Final Carried 4 | . 1 4 3 Class Distribution -------------------- 100% | Mutant Dominant Class ---------------- Mutant | -10/Materials Mutant | -10/Mines Mutant | -9/Materials Resources | -11 -10 -10 -9 ----------- Run | Yrd Mat Min Mat Matter Collected 486 | 92 112 256 26 Remotely . | . . . . Salvage Created 671 | 45 130 437 59 Parts 50 | 7 14 22 7 Haulers Intercepted . | . . . . Recyclers Shooed 2 | . 2 . . Parts Field Recycled . | . . . . Retrieved Matter . | . . . . Parts Self-Destructed . | . . . . Prevented . | . . . . Kills | -11 -10 -10 -9 ------- Run | Yrd Mat Min Mat Combat Hostiles Destroyed 24 | . 7 12 5 Melee 4 | . . 4 . Guns 15 | . 7 8 . Cannons 2 | . . . 2 AOE 3 | . . . 3 Classes Destroyed 6 | 1 2 1 2 Tunneler 2 | 2 . . . Recycler 2 | . . 2 . Watcher 1 | . . . 1 Swarmer 16 | . 6 6 4 Grunt 7 | . 1 6 . Sentry 1 | . . . 1 Best Kill Streak 5 | 2 3 3 5 Combat Bots Only 5 | . 3 3 5 Max Kills in Single Turn 2 | 2 1 1 2 Gunslinging . | . . . . Exploded 2 | . . . 2 Melee 1 | . . 1 . Uniques/NPCs Destroyed . | . . . . Combat | -11 -10 -10 -9 -------- Run | Yrd Mat Min Mat Hostile Shots Fired 168 | . 36 47 85 Missed 52 | . 10 11 31 Hits 116 | . 26 36 54 Projectile 116 | . 26 36 54 Critical Strikes 1 | . . . 1 Damage Taken 1209 | . 230 389 590 Core 565 | . 75 83 407 Absorbed by Shields . | . . . . Core Remaining (%) 68 | 100 . 36 . Volleys Fired 82 | 1 26 33 22 Largest 2 | 2 2 2 1 Hottest 125 | 90 90 125 75 Shots Fired 119 | 2 52 43 22 Gun 99 | 2 52 43 2 Cannon 8 | . . . 8 Launcher 12 | . . . 12 Special . | . . . . Kinetic . | . . . . Thermal 107 | 2 52 43 10 Explosive 12 | . . . 12 Electromagnetic . | . . . . Robot Hit Streak 7 | 1 7 6 4 Robot Miss Streak 4 | 1 4 4 2 Penetration Max . | . . . . Secondary Targets 1 | . . 1 . Max Gunslinging Chain 1 | . . 1 . Shots Hit Robots 68 | 1 23 34 10 Core Hits 36 | 2 9 16 9 Critical Kills . | . . . . Critical Parts Destroyed . | . . . . Critical Strikes 4 | . 2 2 . Burn 3 | . 2 1 . Sever 1 | . . 1 . Melee Attacks 16 | . . 16 . Impact . | . . . . Slashing 16 | . . 16 . Piercing . | . . . . Sneak Attacks 1 | . . 1 . Combat Hostiles . | . . . . Follow-up Attacks . | . . . . Damage Inflicted 1518 | 24 280 847 367 Guns 745 | 24 280 419 22 Cannons 69 | . . . 69 Explosions 275 | . . . 275 Melee 428 | . . 428 . Ramming 1 | . . . 1 Kinetic . | . . . . Thermal 814 | 24 280 419 91 Explosive 275 | . . . 275 Electromagnetic . | . . . . Impact . | . . . . Slashing 428 | . . 428 . Piercing . | . . . . Highest Corruption . | . . . . Average Corruption . | . . . . Corruption Purged . | . . . . Corruption Blocked . | . . . . Overload Shots . | . . . . Overflow Damage 22 | . . 22 . Projectiles . | . . . . Explosions . | . . . . Melee 22 | . . 22 . Knockbacks . | . . . . Impact . | . . . . Kinetic . | . . . . Secondary . | . . . . Self-Inflicted Damage 101 | . . . 101 Shots 7 | . . . 7 Rammed 1 | . . . 1 Targets Rammed 1 | . . . 1 Kicked . | . . . . Crushed . | . . . . Highest Temperature 363 | 30 360 363 56 Average Temperature 122 | 20 129 135 20 Received Heat Transfer 243 | . 48 168 27 Effects 4 | . 2 2 . Energy Bleed 1 | . . 1 . Interference 3 | . 2 1 . Siege Activations . | . . . . Martial Activations . | . . . . Shielding Activations . | . . . . Robots Disrupted . | . . . . Combat Hostiles . | . . . . Robots Corrupted . | . . . . Combat Hostiles . | . . . . Parts Fried . | . . . . Impact Corruptions . | . . . . Robots Melted . | . . . . Combat Hostiles . | . . . . Parts Melted 2 | . 1 1 . Heat Transferred 2028 | 62 892 889 185 Parts Sabotaged . | . . . . Parts Stolen . | . . . . Parts Stripped . | . . . . Power Chain Reactions . | . . . . Alert | -11 -10 -10 -9 ------- Run | Yrd Mat Min Mat Maximum Alert Level . | . . . . Low Security (%) 100 | 100 100 100 100 Level 1 . | . . . . Level 2 . | . . . . Level 3 . | . . . . Level 4 . | . . . . Level 5 . | . . . . High Security . | . . . . Max Security . | . . . . Peak Influence 146 | 10 65 146 142 Initial 21 | . 6 21 5 Average 62 | . 29 74 80 Influence Increases 777 | 10 175 365 227 Destroy 0b10 Robot/C 480 | . 140 240 100 Destroy 0b10 Robot/NC 25 | 10 . 10 5 Destroy Leader 82 | . 20 40 22 Disable Machine 15 | . . . 15 Destroy Structure 85 | . . . 85 Partial Spotted 15 | . 15 . . Lose Combat Pursuer 75 | . . 75 . Influence Decreases 650 | . 130 406 114 Entered New Map 47 | . 4 34 9 Time Decay 563 | . 126 342 95 Lost Part 40 | . . 30 10 Squads Dispatched 3 | . 2 1 . Investigation . | . . . . Extermination . | . . . . Reinforcement 2 | . 2 . . Assault 1 | . . 1 . Garrison . | . . . . Intercept . | . . . . Searches Triggered . | . . . . Construction Impeded . | . . . . Haulers Reinforced . | . . . . Active Scanning Responses . | . . . . Cargo Convoy Interrupts . | . . . . Stealth | -11 -10 -10 -9 --------- Run | Yrd Mat Min Mat Distress Signals 2 | . 2 . . Communications Jammed . | . . . . Distress Signals . | . . . . Times Spotted 45 | . 18 17 10 Peak Tracking Total 7 | . 5 4 7 Tactical Retreats 3 | . . 3 . Traps | -11 -10 -10 -9 ------- Run | Yrd Mat Min Mat Traps Triggered . | . . . . Indirectly . | . . . . Trap Hack Attempts . | . . . . Triggered . | . . . . Disarmed . | . . . . Reprogrammed . | . . . . Reused . | . . . . Traps Extracted . | . . . . Installed . | . . . . Triggered . | . . . . Machines | -11 -10 -10 -9 ---------- Run | Yrd Mat Min Mat Machines Disabled 1 | . . . 1 Max in Single Turn 1 | . . . 1 Machines Repaired . | . . . . Machines Dismantled . | . . . . Machines Sabotaged . | . . . . Overloaded Fab Kills . | . . . . Hacking | -11 -10 -10 -9 --------- Run | Yrd Mat Min Mat Machines Accessed . | . . . . Terminals . | . . . . Fabricators . | . . . . Repair Stations . | . . . . Recycling Units . | . . . . Scanalyzers . | . . . . Garrison Access . | . . . . Total Hacks . | . . . . Successful . | . . . . Failed . | . . . . Catastrophic . | . . . . Database Lockouts . | . . . . Manual . | . . . . Terminals . | . . . . Fabricators . | . . . . Repair Stations . | . . . . Recycling Units . | . . . . Scanalyzers . | . . . . Garrison Access . | . . . . Terminal Hacks . | . . . . Fabricator Hacks . | . . . . Repair Station Hacks . | . . . . Recycling Unit Hacks . | . . . . Scanalyzer . | . . . . Garrison Access Hacks . | . . . . Unauthorized Hacks . | . . . . Terminals . | . . . . Fabricators . | . . . . Repair Stations . | . . . . Recycling Units . | . . . . Scanalyzers . | . . . . Garrison Access . | . . . . Data Cores Recovered . | . . . . Used . | . . . . Hacking Detections . | . . . . Full Trace Events . | . . . . Feedback Events . | . . . . Feedback Blocked . | . . . . Robot Schematics Acquired . | . . . . Robots Built . | . . . . Authchips . | . . . . Time . | . . . . Total Robot Build Rating . | . . . . Part Schematics Acquired . | . . . . Parts Built . | . . . . Authchips . | . . . . Time . | . . . . Total Part Build Rating . | . . . . Parts Repaired . | . . . . Time . | . . . . Parts Recycled . | . . . . Recycled Matter . | . . . . Retrieved Matter . | . . . . Retrieved Components . | . . . . Parts Scanalyzed . | . . . . Part Schematics Acquired . | . . . . Parts Damaged . | . . . . Bothacking | -11 -10 -10 -9 ------------ Run | Yrd Mat Min Mat Used RIF Installer . | . . . . Robots Hacked . | . . . . Non-combat . | . . . . Combat . | . . . . Robot Hacks Applied . | . . . . Relay Couplers Released . | . . . . Fabnet Peak Effective % . | . . . . Robots Rewired . | . . . . Allies Hacked . | . . . . Hacks Repelled . | . . . . Allies | -11 -10 -10 -9 -------- Run | Yrd Mat Min Mat Total Allies . | . . . . Largest Group . | . . . . Highest-Rated Group . | . . . . Highest-Rated Ally . | . . . . Total Orders . | . . . . Ally Attacks . | . . . . Total Damage . | . . . . Kills . | . . . . Allies Corrupted . | . . . . Allies Melted . | . . . . Intel | -11 -10 -10 -9 ------- Run | Yrd Mat Min Mat Active Infowar (turns) . | . . . . Robot Analysis Total . | . . . . Derelict Logs Recovered . | . . . . Drone Launches . | . . . . Drone Recoveries . | . . . . Exploration | -11 -10 -10 -9 ------------- Run | Yrd Mat Min Mat Turns Passed 1388 | 54 319 765 250 Spaces Moved 659 | 35 138 360 126 Core 267 | 13 . 128 126 Treads 392 | 22 138 232 . Legs . | . . . . Wheels . | . . . . Hover . | . . . . Flight . | . . . . Fastest Speed 50 | 50 160 160 100 Average Speed 165 | 119 160 174 159 Slowest Speed 300 | 160 160 200 300 Overloaded Moves . | . . . . Propulsion Burnouts . | . . . . Robots Hopped . | . . . . Potential Cave-ins . | . . . . Cave-ins Triggered . | . . . . Exploration Rate (%) 32 | 3 43 64 18 Regions Visited 3 Branch Regions 1 Pre-discovered Areas . | . . . . Known Exits Taken . | . . . . Unknown Exits Taken 3 | 1 1 1 . Scrap Searched 2 | . . 2 . Spaces Dug . | . . . . Terrain Destroyed 100 | . . . 100 Melee . | . . . . Projectile . | . . . . AOE 100 | . . . 100 Terrain Rammed . | . . . . Walls Destroyed . | . . . . Machines Disabled . | . . . . Actions | -11 -10 -10 -9 --------- Run | Yrd Mat Min Mat Total 822 | 45 184 439 154 Wait 45 | . 20 25 . Move 656 | 34 137 359 126 Hop . | . . . . Pick Up 12 | 5 1 4 2 Fast Attach . | . . . . Attach 9 | 5 . 1 3 Detach . | . . . . Swap 1 | . . 1 . Drop . | . . . . Fire 82 | 1 26 33 22 Melee 16 | . . 16 . Ram 1 | . . . 1 Kick . | . . . . Crush . | . . . . Escape Stasis . | . . . . Rewire . | . . . . Trap . | . . . . Miscellaneous . | . . . . Route ------- -11/Scrapyard -10/Materials (discovered 2 exits: [*Mat] / [*Min]) -10/Mines -9/Materials History --------- Turn | Location | Event 23 | -11/Scrapyard | Discovered new exit (range 15) 55 | -11/Scrapyard | Entered Materials 284 | -10/Materials | Discovered new exit (range 12) 303 | -10/Materials | Build established: Mutant 367 | -10/Materials | Discovered new exit (range 5) 374 | -10/Materials | Entered Mines 375 | -10/Mines | Met a Derelict testing a Signal Generator 598 | -10/Mines | A weapon hastily lodged in a ceiling crevice suddenly fell to the ground 619 | -10/Mines | Assembled infested the area 863 | -10/Mines | Core integrity fell below 50% 1074 | -10/Mines | Discovered new exit (range 15) 1139 | -10/Mines | Entered Materials 1139 | -9/Materials | Evolved 2 slots: Utility x2 1217 | -9/Materials | Core integrity fell below 50% 1244 | -9/Materials | Core integrity fell below 20% 1247 | -9/Materials | Lost 3 parts (1p2w) 1389 | -9/Materials | Destroyed self with Mini Grenade Launcher Last Messages --------------- Acquired 10 matter. S-10 Pest destroyed. Beam Cannon destroyed. Slammed into S-10 Pest. Acquired Mni. Grenade Launcher. S-10 Pest destroyed. The unstable cave ceiling collapses. Y-45 Defender destroyed. The unstable cave ceiling collapses. Acquired 9 matter. The unstable cave ceiling collapses. TF Node disabled. Sensor Array tumbles out of TF Node. Signal Interpreter tumbles out of TF Node. W-16 Scout destroyed. U-05 Engineer lays Concrete. U-05 Engineer builds a Wall. Acquired 7 matter. U-05 Engineer lays Concrete. The unstable cave ceiling collapses. Map ----- +----------------------------------------------------+ | ????????????????????# #########?????????# | | ????????????????????# #?????????# | | ????????????????????# #?????????# | | ????????????????????## #?????????# | | ????????????????????# ##### #?????????# | | ????????????????????## #+######### ####??????# | | ?????????????????????## # # ####???# | | ??????????????????????###[ # ##### | | ????????????????????????# ! %#= [ | | ????????????????????????# [%*= | | ????????????????????????# """ """ * [ * | | ????????????????????????# """ """ # ##+#### | | ????????????????????????# """ """ # = # | | ????????????????????????# # ##### """ # | | ????????????????????????#+######### #???# """ # | | ????????????????????????# #???# """ # | | ???????????????????????## #???# # | | ???????????????????????#T #???# # | | ???????????????????????## #???######## | | ????????????????????????# """ """ #??????????? | | ??????????????????####### """ """ #??????????? | | ??????????????????? """ """ #??????????? | | ????????????????????????# #??????????? | | ????????????????????????# +??????????? | | ???????????????????????## * #??????????? | | ???????????????????????# @ #+##### #??????????? | | ???????????????????????# # #??????????? | | ???????????????????????# !! # #??????????? | | ???????????????????????# != # #??????????? | | ???????????????????????## """ # #??????????? | | ???????????????????????? """ # #??????????? | | ???????????????????????? """ # #??????????? | | ???????????????????????? # #??????????? | | ????????????????????????Y ?# #??????????? | | ???????????????????????? #####? #??????????? | | ????????????????????????# ####????? #??????????? | | ?????????????????????????#????????? #??????????? | | ??????????????????????????????????? #??????????? | | ?????????????????????????????????????????????????? | | ?????????????????????????????????????????????????? | | ?????????????????????????????????????????????????? | | ?????????????????????????????????????????????????? | | ?????????????????????????????????????????????????? | | ?????????????????????????????????????????????????? | | ?????????????????????????????????????????????????? | | ?????????????????????????????????????????????????? | | ?????????????????????????????????????????????????? | | ?????????????????????????????????????????????????? | | ?????????????????????????????????????????????????? | | ?????????????????????????????????????????????????? | +----------------------------------------------------+ Best States ------------- Heat Dissipation 28 Energy Generation 10 Energy Capacity 250 Matter Stores 500 Matter Capacity 500 Sight Range 16 Terrain Scan Density 10 Evasion (%) 50 Recoil Reduction 2 Item Schematics ----------------- None Robot Schematics ------------------ None Fabricated ------------ Nothing Repaired ---------- Nothing Alien Tech Used ----------------- None Achievements -------------- None Challenges ------------ None Game ------ Seed AdvancedSurveybotInterpreter Manual? 0 Play Time 00:08:40 Cumulative 60.2 hours Start 2025.07.18 @ 13:53:25 End 2025.07.18 @ 16:04:24 Sessions 1 Manual Loads 0 Difficulty Rogue Special Mode None Game No. 258 Rogue 258 Adventurer 0 Explorer 0 Win Type - Total 0 Types 0/0/0/0/0/0/0/0/0/0 Lore% 39 Gallery% 30 Achievement% 25 Wizard Run 0 Options --------- Layout 2 ASCII 0 Keyboard 0 Movement Mouse Keybinds 0 Fullscreen 1 Font 24/Terminus Map View 50x44 Zoom Use 0% Tactical HUD 0 Map Filters NONE Filters NONE Steam 1 RUN: 071698f2-2462-48dd-afe0-0e41bf198b33